fUSD/lending_fUSD_20240517
["ID","MTS","AMOUNT","RATE_DAILY","PERIOD"]
[327305390,1715977842584,-8504.4578,0.00012898,2]
[327305392,1715977842593,-9541.80941046,0.000129,2]
[327305394,1715977842602,-9541.80941044,0.000129,2]
[327305396,1715977842611,-353.92431853,0.000129,2]
[327305398,1715977842621,-151.859452,0.00012968,2]
[327305400,1715977842631,-151.859452,0.00012968,2]
[327305402,1715977842640,-202.343422,0.00012968,2]
[327305404,1715977842649,-656.14610936,0.00012994,2]
[327305406,1715977842658,-1062.81742586,0.00012994,2]
[327305408,1715977842667,-165.39781373,0.00012994,2]
[327305410,1715977842676,-155.31745909,0.00012994,2]
[327305412,1715977842686,-204.31657364,0.00012994,2]
[327305414,1715977842694,-200.34341848,0.00012994,2]
[327305416,1715977842703,-155.0,0.00012994,2]
[327305418,1715977842712,-2183.25094686,0.00012994,2]
[327305420,1715977842722,-155.0,0.00012994,2]
[327305422,1715977842731,-155.96026536,0.00012994,2]
[327305424,1715977842740,-789.21148886,0.00012995,2]
[327305426,1715977842750,-356.13965081,0.00012995,2]
[327305428,1715977842760,-500.0,0.00012995,2]
[327305430,1715977842770,-360.86581876,0.00012996,2]
[327305432,1715977842779,-567.22644914,0.00012996,7]
[327305434,1715977842790,-155.0,0.00012996,2]
[327305436,1715977842799,-1031.96275653,0.00012996,2]
[327305438,1715977842809,-848.00767163,0.00012996,2]
[327305440,1715977842819,-427.2731236,0.00012997,2]
[327305442,1715977842828,-3958.99318813,0.00012997,2]
[327305444,1715977842838,-7514.18776982,0.00012997,2]
[327305446,1715977842848,-500.0,0.00012997,2]
[327305448,1715977842858,-411.98,0.00012997,2]
[327305450,1715977842867,-500.0,0.00012997,2]
[327305452,1715977842877,-500.0,0.00012997,2]
[327305456,1715977842887,-500.0,0.00012997,2]
[327305458,1715977842896,-500.0,0.00012997,2]
[327305459,1715977842906,-500.0,0.00012997,2]
[327305461,1715977842915,-500.0,0.00012997,2]
[327305463,1715977842925,-500.0,0.00012997,2]
[327305465,1715977842934,-500.0,0.00012997,2]
[327305468,1715977842944,-446.78,0.00012997,2]
[327305469,1715977842953,-500.0,0.00012997,2]
[327305472,1715977842964,-231.49625,0.00012997,2]
[327305474,1715977842973,-544.88,0.00012997,2]
[327305476,1715977842983,-500.0,0.00012997,2]
[327305478,1715977842993,-500.0,0.00012997,2]
[327305480,1715977843003,-500.0,0.00012997,2]
[327305482,1715977843014,-500.0,0.00012997,2]
[327305484,1715977843023,-500.0,0.00012997,2]
[327305486,1715977843033,-500.0,0.00012997,2]
[327305488,1715977843042,-500.0,0.00012997,2]
[327305489,1715977843051,-8507.67580891,0.00012998,7]
[327305490,1715977843060,-500.0,0.00012999,2]
[327305491,1715977843069,-500.0,0.00012999,2]
[327305492,1715977843079,-500.0,0.00012999,2]
[327305493,1715977843088,-500.0,0.00012999,2]
[327305494,1715977843097,-369.95,0.00012999,2]
[327305496,1715977843106,-500.0,0.00012999,2]
[327305498,1715977843116,-500.0,0.00012999,2]
[327305500,1715977843126,-500.0,0.00012999,2]
[327305503,1715977843135,-500.0,0.00012999,2]
[327305506,1715977843149,-500.0,0.00012999,2]
[327305509,1715977843158,-500.0,0.00012999,2]
[327305511,1715977843168,-500.0,0.00012999,2]
[327305513,1715977843178,-500.0,0.00012999,2]
[327305515,1715977843190,-200.0,0.00013,2]
[327305516,1715977843200,-200.0,0.00013,2]
[327305517,1715977843209,-200.0,0.00013,2]
[327305518,1715977843220,-362.46740158,0.00013,2]
[327305519,1715977843230,-200.0,0.00013,2]
[327305520,1715977843239,-200.0,0.00013,2]
[327305521,1715977843249,-200.0,0.00013,2]
[327305522,1715977843258,-200.0,0.00013,2]
[327305523,1715977843268,-200.0,0.00013,2]
[327305524,1715977843277,-200.0,0.00013,2]
[327305525,1715977843286,-200.0,0.00013,2]
[327305526,1715977843295,-208.0,0.00013,2]
[327305527,1715977843304,-208.0,0.00013,2]
[327305528,1715977843315,-208.0,0.00013,2]
[327305529,1715977843324,-208.0,0.00013,2]
[327305530,1715977843333,-208.0,0.00013,2]
[327305531,1715977843342,-208.0,0.00013,2]
[327305532,1715977843351,-208.0,0.00013,2]
[327305533,1715977843360,-208.0,0.00013,2]
[327305534,1715977843369,-208.0,0.00013,2]
[327305535,1715977843378,-208.0,0.00013,2]
[327305536,1715977843387,-208.0,0.00013,2]
[327305537,1715977843396,-208.0,0.00013,2]
[327305538,1715977843405,-208.0,0.00013,2]
[327305539,1715977843414,-208.0,0.00013,2]
[327305540,1715977843424,-208.0,0.00013,2]
[327305541,1715977843433,-208.0,0.00013,2]
[327305542,1715977843442,-2000.0,0.00013,2]
[327305543,1715977843451,-2000.0,0.00013,2]
[327305544,1715977843460,-1010.62,0.00013,2]
[327305545,1715977843469,-534.807266,0.00013,2]
[327305546,1715977843479,-179.58164916,0.00013318,2]
[327305547,1715977843488,-8066.11144132,0.00013318,2]
[327305548,1715977843497,-1312.69,0.0001337,15]
[327305550,1715977843507,-363.654,0.00013418,2]
[327305551,1715977843518,-444.0,0.00013418,2]
[327305552,1715977843527,-1059.0,0.00013418,2]
[327305553,1715977843536,-2081.451,0.00013418,2]
[327305554,1715977843545,-1393.818,0.00013418,2]
[327305555,1715977843555,-970.257,0.00013418,2]
[327305556,1715977843565,-5753.0,0.00013418,2]
[327305557,1715977843574,-425.0,0.00013418,2]
[327305558,1715977843583,-5914.0,0.00013418,2]
[327305559,1715977843594,-760.0,0.00013424,2]
[327305560,1715977843603,-1000.0,0.00013425,2]
[327305561,1715977843613,-300.0,0.00013447,2]
[327305562,1715977843623,-3872.645,0.00013447,2]
[327305564,1715977843632,-1004.88727076,0.00013498,2]
[327305566,1715977843641,-180.44,0.00013683,2]
[327305568,1715977843651,-200.0,0.00013699,2]
[327305570,1715977843660,-200.0,0.00013699,2]
[327305572,1715977843669,-200.0,0.00013699,2]
[327305574,1715977843680,-10126.6,0.00013699,2]
[327305576,1715977843689,-500.0,0.00013699,2]
[327305578,1715977843698,-250.0,0.00013699,2]
[327305580,1715977843707,-2751.0,0.00013699,2]
[327305582,1715977843716,-777.43,0.00013777,2]
[327305584,1715977843726,-1000.0,0.00013792,2]
[327305586,1715977843735,-164.16,0.00013927,2]
[327305588,1715977843744,-1431.495217,0.00013973,2]
[327305590,1715977843753,-605.06,0.00013973,2]
[327305592,1715977843764,-519.62,0.00013973,2]
[327305594,1715977843773,-200.0,0.00013995,2]
[327305597,1715977843782,-155.0,0.00014,2]
[327305599,1715977843792,-2000.0,0.00014,2]
[327305601,1715977843802,-2000.0,0.00014,2]
[327305603,1715977843811,-166.66666666,0.00014103,2]
[327305605,1715977843820,-158.50296534,0.0001411,2]
[327305607,1715977843829,-154.75954023,0.00014133,2]
[327305609,1715977843839,-2280.14178071,0.00014147,2]
[327305611,1715977843848,-152.84858728,0.00014147,2]
[327305613,1715977843857,-902.47746754,0.00014149,2]
[327305615,1715977843866,-1151.34669323,0.00014151,2]
[327305617,1715977843875,-156.49084933,0.00014219,2]
[327305619,1715977843884,-171.30675107,0.00014221,2]
[327305621,1715977843894,-179.89314112,0.00014224,2]
[327305623,1715977843903,-158.96537893,0.0001424,2]
[327305625,1715977843912,-500.0,0.00014246,2]
[327305627,1715977843921,-500.0,0.00014246,2]
[327305629,1715977843930,-152.84858728,0.00014294,2]
[327305630,1715977843940,-156.49084933,0.00014329,2]
[327305631,1715977843950,-152.84858728,0.00014364,2]
[327305632,1715977843959,-150.63567191,0.00014412,2]
[327305633,1715977843968,-152.84858728,0.00014429,2]
[327305634,1715977843977,-154.51679898,0.00014447,2]
[327305635,1715977843986,-2280.14178071,0.00014467,2]
[327305636,1715977843995,-152.84858728,0.00014471,2]
[327305637,1715977844004,-290.15309922,0.00014475,2]
[327305638,1715977844014,-158.50296534,0.00014506,2]
[327305639,1715977844023,-158.50296534,0.00014516,2]
[327305640,1715977844032,-290.15309922,0.00014538,2]
[327305641,1715977844042,-200.0,0.00014544,2]
[327305642,1715977844051,-1000.0,0.00014544,2]
[327305643,1715977844061,-500.0,0.00014544,2]
[327305644,1715977844070,-200.0,0.00014544,2]
[327305645,1715977844079,-1151.34669323,0.00014545,2]
[327305646,1715977844088,-152.99399679,0.00014559,2]
[327305647,1715977844097,-152.84858728,0.00014621,2]
[327305648,1715977844107,-369.29401334,0.00014631,2]
[327305649,1715977844117,-154.75954023,0.00014641,2]
[327305650,1715977844126,-1010.62,0.00014645,2]
[327305651,1715977844136,-1111.09966964,0.0001466,2]
[327305652,1715977844150,-2280.14178071,0.0001467,2]
[327305653,1715977844159,-158.96537893,0.00014691,2]
[327305654,1715977844170,-154.51679898,0.00014709,2]
[327305655,1715977844179,-166.66666666,0.00014716,2]
[327305656,1715977844189,-290.15309922,0.00014734,2]
[327305657,1715977844199,-152.84858728,0.00014761,2]
[327305658,1715977844208,-153.90576894,0.00014761,2]
[327305659,1715977844217,-285.92319707,0.0001478,2]
[327305660,1715977844229,-1431.495217,0.00014795,2]
[327305661,1715977844239,-166.66666666,0.000148,2]
[327305662,1715977844249,-156.49084933,0.00014804,2]
[327305663,1715977844258,-169.37772415,0.00014812,2]
[327305664,1715977844268,-168.24161347,0.00014813,2]
[327305665,1715977844277,-189.44858197,0.00014816,2]
[327305666,1715977844286,-189.44858197,0.00014819,2]
[327305667,1715977844296,-902.47746754,0.0001483,2]
[327305668,1715977844306,-166.66666667,0.00014833,2]
[327305669,1715977844316,-154.75954023,0.00014837,2]
[327305670,1715977844325,-154.75954023,0.00014838,2]
[327305671,1715977844334,-150.63567191,0.00014854,2]
[327305672,1715977844343,-187.52860954,0.000149,2]
[327305673,1715977844352,-209.54359217,0.000149,2]
[327305674,1715977844361,-209.54359216,0.000149,2]
[327305675,1715977844370,-209.54359216,0.000149,2]
[327305676,1715977844379,-760.0,0.00014916,2]
[327305677,1715977844388,-158.96537893,0.00014916,2]
[327305678,1715977844397,-31391.83499502,0.00014924,2]
[327305679,1715977844407,-7901.77369099,0.00014929,2]
[327305680,1715977844417,-902.47746754,0.00014942,2]
[327305681,1715977844426,-166.66666666,0.00014962,2]
[327305682,1715977844436,-1151.34669323,0.00014979,2]
[327305683,1715977844447,-1151.34669323,0.00014989,2]
[327305684,1715977844456,-242.25065691,0.00015,7]
[327305685,1715977844467,-200.0,0.00015,2]
[327305686,1715977844478,-155.0,0.00015,2]
[327305687,1715977844489,-2137.60838292,0.00015,2]
[327305688,1715977844499,-14563.05583231,0.00015,2]
[327305689,1715977844508,-257.56180618,0.00015,2]
[327305690,1715977844519,-1833.0,0.00015,2]
[327305691,1715977844527,-2000.0,0.00015,2]
[327305692,1715977844537,-485.0,0.00015,2]
[327305693,1715977844546,-1022.0,0.00015,2]
[327305694,1715977844556,-376.36,0.00015003,2]
[327305695,1715977844566,-153.90576894,0.00015007,2]
[327305696,1715977844576,-472.67228928,0.00015048,2]
[327305697,1715977844585,-300.0,0.00015068,2]
[327305698,1715977844595,-152.84858728,0.00015081,2]
[327305699,1715977844604,-154.75954023,0.00015084,2]
[327305700,1715977844613,-9541.80941044,0.000151,2]
[327305701,1715977844623,-285.92319707,0.00015121,2]
[327305702,1715977844631,-189.44858197,0.00015137,2]
[327305703,1715977844641,-189.44858197,0.00015145,2]
[327305704,1715977844650,-153.90576894,0.00015178,2]
[327305705,1715977844660,-154.75954023,0.00015188,2]
[327305706,1715977844668,-156.49084933,0.00015196,2]
[327305707,1715977844678,-290.15309922,0.000152,2]
[327305708,1715977844687,-180.44,0.00015204,2]
[327305709,1715977844696,-150.63567191,0.00015232,2]
[327305710,1715977844705,-290.15309922,0.00015238,2]
[327305711,1715977844714,-166.66666666,0.00015241,2]
[327305712,1715977844723,-2280.14178071,0.00015243,2]
[327305713,1715977844732,-189.44858197,0.00015255,2]
[327305714,1715977844741,-156.49084933,0.00015299,2]
[327305715,1715977844751,-2280.14178071,0.00015301,2]
[327305716,1715977844759,-156.49084933,0.00015303,2]
[327305717,1715977844769,-472.67228928,0.00015305,2]
[327305718,1715977844778,-164.16,0.00015319,2]
[327305719,1715977844787,-158.96537893,0.00015334,2]
[327305720,1715977844798,-1151.34669323,0.00015335,2]
[327305721,1715977844808,-285.92319707,0.00015339,2]
[327305722,1715977844818,-285.92319707,0.00015367,2]
[327305723,1715977844829,-285.92319707,0.00015376,2]
[327305724,1715977844839,-166.83499667,0.00015383,2]
[327305725,1715977844848,-189.44858197,0.00015386,2]
[327305726,1715977844857,-2280.14178071,0.00015394,2]
[327305727,1715977844865,-158.96537893,0.00015394,2]
[327305728,1715977844874,-290.15309922,0.00015403,2]
[327305729,1715977844883,-158.50296534,0.00015438,2]
[327305730,1715977844892,-152.99399679,0.00015453,2]
[327305731,1715977844901,-1151.34669323,0.00015476,2]
[327305732,1715977844911,-290.15309922,0.00015494,2]
[327305733,1715977844921,-150.0,0.000155,2]
[327305734,1715977844931,-150.0,0.000155,2]
[327305735,1715977844941,-189.44858197,0.00015504,2]
[327305736,1715977844951,-150.63567191,0.00015527,2]
[327305737,1715977844961,-285.92319707,0.00015536,2]
[327305738,1715977844970,-154.75954023,0.00015546,2]
[327305739,1715977844979,-285.92319707,0.00015564,2]
[327305740,1715977844988,-166.66666668,0.00015565,2]
[327305741,1715977844999,-160.45154732,0.00015594,2]
[327305742,1715977845008,-154.51679898,0.00015612,2]
[327305743,1715977845018,-1431.495217,0.00015616,2]
[327305744,1715977845028,-150.63567191,0.00015618,2]
[327305745,1715977845037,-200.0,0.00015642,2]
[327305746,1715977845046,-154.75954023,0.00015645,2]
[327305747,1715977845055,-472.67228928,0.0001566,2]
[327305748,1715977845065,-290.15309922,0.00015677,2]
[327305749,1715977845074,-177.88100904,0.00015732,2]
[327305750,1715977845085,-162.0,0.00015736,2]
[327305751,1715977845094,-189.44858197,0.00015745,2]
[327305752,1715977845104,-166.66666666,0.0001579,2]
[327305753,1715977845113,-170.46182496,0.0001579,2]
[327305754,1715977845123,-167.0,0.00015831,2]
[327305755,1715977845133,-167.0,0.00015831,2]
[327305756,1715977845145,-154.75954023,0.00015847,2]
[327305757,1715977845154,-1151.34669323,0.00015878,2]
[327305758,1715977845163,-500.0,0.00015889,2]
[327305759,1715977845172,-500.0,0.0001589,2]
[327305760,1715977845183,-500.0,0.0001589,2]
[327305761,1715977845192,-152.84858728,0.00015891,2]
[327305762,1715977845202,-157.33741901,0.00015897,2]
[327305763,1715977845212,-2280.14178071,0.00015939,2]
[327305764,1715977845222,-150.63567191,0.00015948,2]
[327305765,1715977845233,-166.66666668,0.00015976,2]
[327305766,1715977845242,-1151.34669323,0.00015982,2]
[327305767,1715977845253,-300.0,0.0001599,2]
[327305768,1715977845264,-2280.14178071,0.0001599,2]
[327305769,1715977845273,-2000.0,0.00016,2]
[327305770,1715977845283,-150.0,0.00016,2]
[327305771,1715977845293,-150.0,0.00016,2]
[327305772,1715977845303,-624.96,0.00016004,2]
[327305773,1715977845313,-500.0,0.00016004,2]
[327305774,1715977845323,-201.17,0.00016004,2]
[327305775,1715977845333,-500.0,0.00016004,2]
[327305776,1715977845343,-500.0,0.00016004,2]
[327305777,1715977845352,-500.0,0.00016004,2]
[327305778,1715977845362,-500.0,0.00016004,2]
[327305779,1715977845371,-359.84,0.00016004,2]
[327305780,1715977845381,-500.0,0.00016004,2]
[327305781,1715977845391,-500.0,0.00016004,2]
[327305782,1715977845401,-386.99,0.00016004,2]
[327305783,1715977845411,-268.67,0.00016004,2]
[327305784,1715977845422,-516.3,0.00016004,2]
[327305785,1715977845431,-500.0,0.00016004,2]
[327305786,1715977845441,-168.02744571,0.00016031,2]
[327305787,1715977845452,-1151.34669323,0.00016038,2]
[327305788,1715977845463,-902.47746754,0.00016068,2]
[327305789,1715977845472,-152.84858728,0.000161,2]
[327305790,1715977845482,-153.90576894,0.00016101,2]
[327305791,1715977845491,-9999.99,0.00016116,2]
[327305792,1715977845500,-2280.14178071,0.00016124,2]
[327305793,1715977845509,-189.44858197,0.00016142,2]
[327305794,1715977845519,-168.02744572,0.00016198,2]
[327305795,1715977845528,-150.63567191,0.00016242,2]
[327305796,1715977845538,-290.15309922,0.00016246,2]
[327305797,1715977845547,-500.0,0.00016285,2]
[327305798,1715977845558,-500.0,0.00016285,2]
[327305799,1715977845568,-500.0,0.00016285,2]
[327305800,1715977845577,-500.0,0.00016285,2]
[327305801,1715977845586,-500.0,0.00016285,2]
[327305802,1715977845595,-500.0,0.00016285,2]
[327305803,1715977845605,-500.0,0.00016285,2]
[327305804,1715977845615,-500.0,0.00016285,2]
[327305805,1715977845624,-500.0,0.00016285,2]
[327305806,1715977845633,-500.0,0.00016285,2]
[327305807,1715977845643,-500.0,0.00016285,2]
[327305808,1715977845652,-500.0,0.00016285,2]
[327305809,1715977845662,-500.0,0.00016285,2]
[327305810,1715977845672,-492.09,0.00016285,2]
[327305811,1715977845681,-500.0,0.00016285,2]
[327305812,1715977845691,-500.0,0.00016285,2]
[327305813,1715977845700,-500.0,0.00016285,2]
[327305814,1715977845709,-1010.62,0.0001629,2]
[327305815,1715977845875,-902.47746754,0.00016291,2]
[327305816,1715977845885,-1000.0,0.000163,2]
[327305817,1715977845895,-223.0,0.000163,2]
[327305818,1715977845905,-353.0,0.000163,2]
[327305819,1715977845916,-166.66666666,0.00016303,2]
[327305820,1715977845925,-1000.0,0.00016322,2]
[327305821,1715977845935,-156.49084933,0.00016338,2]
[327305822,1715977845944,-1312.69,0.00016359,15]
[327305823,1715977845953,-156.49084933,0.00016367,2]
[327305824,1715977845962,-290.15309922,0.00016406,2]
[327305825,1715977845972,-760.0,0.00016407,2]
[327305827,1715977845981,-472.67228928,0.00016412,2]
[327305829,1715977845991,-3455.882,0.00016418,2]
[327305830,1715977846000,-500.0,0.00016438,2]
[327305831,1715977846010,-151.0,0.00016438,2]
[327305832,1715977846021,-1431.495217,0.00016438,2]
[327305833,1715977846030,-300.0,0.00016438,2]
[327305834,1715977846040,-200.0,0.00016438,7]
[327305835,1715977846050,-160.45154732,0.00016444,2]
[327305836,1715977846060,-902.47746754,0.00016471,2]
[327305837,1715977846070,-157.66903106,0.00016476,2]
[327305838,1715977846079,-167.0,0.00016484,2]
[327305839,1715977846089,-150.63567191,0.00016486,2]
[327305840,1715977846098,-290.15309922,0.00016494,2]
[327305841,1715977846108,-902.47746754,0.00016497,2]
[327305842,1715977846117,-4238.24913249,0.000165,2]
[327305843,1715977846127,-150.0,0.000165,2]
[327305844,1715977846136,-150.0,0.000165,2]
[327305845,1715977846148,-472.67228928,0.00016504,2]
[327305846,1715977846158,-290.15309922,0.00016516,2]
[327305847,1715977846167,-777.43,0.00016517,2]
[327305848,1715977846176,-300.0,0.00016534,2]
[327305849,1715977846186,-155.56019282,0.00016559,2]
[327305850,1715977846196,-523.76,0.00016565,2]
[327305851,1715977846206,-157.71739218,0.0001657,2]
[327305852,1715977846215,-472.67228928,0.0001658,2]
[327305853,1715977846226,-189.44858197,0.00016596,2]
[327305854,1715977846235,-290.15309922,0.00016652,2]
[327305855,1715977846246,-164.16,0.00016712,2]
[327305856,1715977846257,-158.12,0.00016712,2]
[327305857,1715977846266,-180.44,0.00016724,2]
[327305858,1715977846276,-189.44858197,0.00016727,2]
[327305859,1715977846285,-200.0,0.00016741,2]
[327305860,1715977846294,-285.92319707,0.00016742,2]
[327305861,1715977846304,-472.67228928,0.00016749,2]
[327305862,1715977846314,-152.99399679,0.00016797,2]
[327305863,1715977846325,-472.67228928,0.000168,2]
[327305864,1715977846333,-1151.34669323,0.00016843,2]
[327305865,1715977846343,-902.47746754,0.00016865,2]
[327305866,1715977846352,-472.67228928,0.00016881,2]
[327305867,1715977846362,-158.96537893,0.00016889,2]
[327305868,1715977846371,-472.67228928,0.00016912,2]
[327305869,1715977846380,-166.66666666,0.00016935,2]
[327305870,1715977846390,-154.75954023,0.00016942,2]
[327305871,1715977846399,-155.0,0.00017,2]
[327305872,1715977846408,-2000.0,0.00017,2]
[327305873,1715977846418,-300.0,0.00017,5]
[327305874,1715977846427,-1010.62,0.00017,2]
[327305875,1715977846437,-307.14,0.00017,2]
[327305876,1715977846446,-150.0,0.00017,2]
[327305877,1715977846455,-150.0,0.00017,2]
[327305878,1715977846464,-166.66666666,0.00017001,2]
[327305879,1715977846473,-157.33741901,0.00017006,2]
[327305880,1715977846482,-183.77,0.00017013,2]
[327305881,1715977846491,-150.63567191,0.00017038,2]
[327305882,1715977846501,-31391.83499502,0.00017052,2]
[327305883,1715977846511,-156.49084933,0.00017058,2]
[327305884,1715977846522,-7901.77369099,0.00017059,2]
[327305885,1715977846531,-157.66903106,0.00017084,2]
[327305887,1715977846540,-1151.34669323,0.00017101,2]
[327305888,1715977846553,-166.66666666,0.00017122,2]
[327305889,1715977846563,-189.44858197,0.00017132,2]
[327305890,1715977846572,-167.0,0.00017137,2]
[327305891,1715977846582,-216.0,0.0001716,2]
[327305892,1715977846591,-150.0,0.00017162,2]
[327305893,1715977846600,-157.71739218,0.00017196,2]
[327305894,1715977846610,-163.92345761,0.00017215,2]
[327305895,1715977846619,-150.0,0.00017233,2]
[327305896,1715977846628,-1431.495217,0.0001726,2]
[327305897,1715977846637,-376.36,0.00017264,2]
[327305898,1715977846646,-156.49084933,0.00017274,2]
[327305899,1715977846655,-158.96537893,0.00017276,2]
[327305900,1715977846664,-150.0,0.0001728,2]
[327305901,1715977846674,-150.0,0.00017295,2]
[327305902,1715977846683,-154.75954023,0.00017297,2]
[327305903,1715977846692,-902.47746754,0.00017307,2]
[327305904,1715977846701,-10000.0,0.00017321,2]
[327305905,1715977846710,-150.63567191,0.00017324,2]
[327305906,1715977846719,-2280.14178071,0.00017327,2]
[327305907,1715977846730,-150.63567191,0.0001733,2]
[327305908,1715977846739,-472.67228928,0.00017338,2]
[327305909,1715977846748,-158.96537893,0.00017354,2]
[327305910,1715977846757,-523.76,0.00017387,2]
[327305911,1715977846768,-523.76,0.00017387,2]
[327305912,1715977846777,-2280.14178071,0.00017393,2]
[327305913,1715977846786,-540018.64445021,0.000174,2]
[327305914,1715977846796,-9541.80941044,0.000174,2]
[327305915,1715977846805,-163.92345761,0.00017407,2]
[327305916,1715977846815,-1151.34669323,0.00017455,2]
[327305917,1715977846824,-168.24161347,0.00017462,2]
[327305918,1715977846834,-285.92319707,0.00017466,2]
[327305919,1715977846844,-1600.88,0.00017474,2]
[327305920,1715977846854,-150.0,0.00017486,2]
[327305921,1715977846863,-902.47746754,0.00017492,2]
[327305922,1715977846872,-2500.0,0.000175,2]
[327305923,1715977846881,-150.0,0.000175,2]
[327305924,1715977846891,-150.0,0.000175,2]
[327305925,1715977846900,-177.88100904,0.00017507,2]
[327305926,1715977846911,-150.63567191,0.00017507,2]
[327305927,1715977846920,-216.0,0.0001751,2]
[327305928,1715977846929,-902.47746754,0.00017519,2]
[327305929,1715977846940,-150.0,0.00017523,2]
[327305930,1715977846950,-189.44858197,0.00017524,2]
[327305931,1715977846960,-157.66903106,0.00017528,2]
[327305932,1715977846969,-500.0,0.00017534,2]
[327305933,1715977846979,-500.0,0.00017534,2]
[327305934,1715977846989,-166.66666667,0.00017574,2]
[327305935,1715977846999,-290.15309922,0.00017605,2]
[327305936,1715977847009,-1500.0,0.00017606,2]
[327305937,1715977847019,-155.56019282,0.00017619,2]
[327305938,1715977847029,-2603.99957143,0.00017624,2]
[327305939,1715977847038,-162.0,0.00017625,2]
[327305940,1715977847048,-150.0,0.00017629,2]
[327305941,1715977847058,-500.0,0.00017679,2]
[327305942,1715977847067,-500.0,0.00017679,2]
[327305943,1715977847077,-315.68,0.00017679,2]
[327305944,1715977847086,-500.0,0.00017679,2]
[327305945,1715977847095,-500.0,0.00017679,2]
[327305946,1715977847104,-500.0,0.00017679,2]
[327305947,1715977847114,-500.0,0.00017679,2]
[327305948,1715977847123,-500.0,0.00017679,2]
[327305949,1715977847134,-500.0,0.00017679,2]
[327305950,1715977847146,-624.42,0.00017679,2]
[327305951,1715977847155,-500.0,0.00017679,2]
[327305952,1715977847164,-150.63567191,0.00017683,2]
[327305953,1715977847174,-150.0,0.0001771,2]
[327305954,1715977847185,-159.96588011,0.00017729,2]
[327305955,1715977847195,-1563.85586632,0.0001774,2]
[327305956,1715977847204,-285.92319707,0.00017741,2]
[327305957,1715977847215,-150.0,0.00017749,2]
[327305958,1715977847226,-157.71739218,0.00017758,2]
[327305959,1715977847238,-189.44858197,0.00017783,2]
[327305960,1715977847248,-167.0,0.00017791,2]
[327305961,1715977847258,-150.0,0.00017797,2]
[327305962,1715977847268,-194.16765628,0.00017804,2]
[327305963,1715977847278,-2280.14178071,0.00017815,2]
[327305964,1715977847289,-150.0,0.00017821,2]
[327305965,1715977847301,-157.33741901,0.00017839,2]
[327305966,1715977847313,-1000.0,0.00017839,2]
[327305967,1715977847324,-200.0,0.00017839,2]
[327305968,1715977847336,-150.0,0.00017843,2]
[327305969,1715977847346,-189.44858197,0.00017855,2]
[327305970,1715977847357,-290.15309922,0.0001786,2]
[327305971,1715977847366,-216.0,0.0001787,2]
[327305972,1715977847376,-156.78049295,0.00017884,2]
[327305973,1715977847386,-5288.51025124,0.00017884,2]
[327305974,1715977847397,-180.82567879,0.00017884,2]
[327305975,1715977847408,-214.0,0.00017884,2]
[327305976,1715977847418,-153.90576894,0.00017888,2]
[327305977,1715977847430,-189.44858197,0.00017894,2]
[327305978,1715977847442,-760.0,0.00017899,2]
[327305979,1715977847452,-485.0,0.000179,2]
[327305980,1715977847463,-485.0,0.000179,2]
[327305981,1715977847472,-2000.0,0.000179,2]
[327305982,1715977847481,-1600.0,0.000179,6]
[327305983,1715977847491,-153.90576894,0.00017901,2]
[327305984,1715977847500,-2000.0,0.0001791,2]
[327305985,1715977847509,-2000.0,0.0001792,2]
[327305986,1715977847519,-179.89314112,0.00017927,2]
[327305987,1715977847529,-2000.0,0.0001793,2]
[327305988,1715977847538,-1010.62,0.00017935,2]
[327305989,1715977847547,-2000.0,0.0001794,2]